Cogmind - Beta 10.2 @@@ ROGUE MODE // 2021.10.16 @ 22:51:25 Player: Momo Result: Destroyed by Y-45 Defender with Beam Rifle Performance ------------- Evolutions (1) 500 Regions Visited (2) 400 Robots Destroyed (38) 190 Value Destroyed (1064) 1064 Prototype IDs (1) 20 Alien Tech Used (0) 0 Bonus (239) 239 TOTAL SCORE: 2413 Bonus ------- Pacifist 200 High Alert Combat Kills 39 Cogmind --------- Core Integrity 0/400 Matter 148/300 Energy 94/100 System Corruption 0% Temperature Cool (18) Movement Treading (160) Location -9/Materials Parts ------- > --- POWER (1) -------- (None) > --- PROPULSION (3) --- Light Treads Light Treads Light Treads > --- UTILITY (3) ------ Large Storage Unit Signal Interpreter > --- WEAPON (2) ------- Rocket Launcher > --- INVENTORY (10) --- Heat Sink Advanced Sensor Array Hacking Suite Advanced Beam Cannon Advanced Beam Cannon EMP Blaster Grenade Launcher Rocket Launcher Datajack Great Maul Peak State ------------ > --- POWER ------------ Light Deuterium Engine > --- PROPULSION ------- Light Treads Light Treads Light Treads > --- UTILITY ---------- Heat Sink Large Storage Unit Advanced Targeting Computer > --- WEAPON ----------- Advanced Beam Cannon Advanced Beam Cannon > --- INVENTORY -------- Light Treads High-capacity Matter Pod Advanced Sensor Array Light Armor Plating Light Armor Plating Advanced Beam Cannon EMP Blaster Rocket Launcher Great Maul Great Maul [Rating: 19] Favorites ----------- Power Light Deuterium Engine Engine Light Deuterium Engine Propulsion Light Treads Treads Light Treads Leg Aluminum Leg Hover Unit Hover Unit Flight Unit Flight Unit Utility Large Storage Unit Device Heat Sink Storage Large Storage Unit Processor Advanced Targeting Computer Protection Light Armor Plating Weapon Advanced Beam Cannon Energy Gun Particle Gun Energy Cannon Advanced Beam Cannon Launcher Rocket Launcher Impact Weapon Great Maul Build | -11 -10 -9 ------- Run | Scr Mat Mat Slots Evolved 2 | . . 2 Power . | . . . Propulsion 1 | . . 1 Utility 1 | . . 1 Weapon . | . . . Parts Attached 26 | . 5 21 Power 3 | . 1 2 Engine 3 | . 1 2 Core . | . . . Reactor . | . . . Propulsion 8 | . 2 6 Treads 5 | . . 5 Leg 1 | . . 1 Wheel . | . . . Hover 1 | . 1 . Flight 1 | . 1 . Utility 7 | . 2 5 Device 3 | . 2 1 Storage 1 | . . 1 Processor 2 | . . 2 Hackware . | . . . Protection 1 | . . 1 Artifact . | . . . Weapon 8 | . . 8 Energy Gun 1 | . . 1 Energy Cannon 3 | . . 3 Ballistic Gun . | . . . Ballistic Cannon . | . . . Launcher 1 | . . 1 Special Weapon . | . . . Impact Weapon 3 | . . 3 Slashing Weapon . | . . . Piercing Weapon . | . . . Special Melee Weapon . | . . . Unidentified Prototypes 1 | . . 1 Parts Lost 10 | . 2 8 Power 2 | . . 2 Propulsion 2 | . 1 1 Utility 3 | . 1 2 Weapon 3 | . . 3 Highest Loss Streak 2 | . 2 2 Average Slot Usage (%) 72 | . 18 79 Engine 8 | . 4 9 Treads 22 | . . 25 Device 6 | . 8 6 Storage 6 | . . 7 Processor 8 | . . 9 Energy Cannon 12 | . . 13 Launcher 1 | . . 1 Impact Weapon 3 | . . 3 Naked Turns 143 | . 143 . Heaviest Build 32 | . 4 32 Greatest Support 60 | 3 12 60 Greatest Overweight (x) 2 | . . 2 Average Overweight (x) . | . . . Largest Inventory Capacity 10 | 4 4 10 Average Capacity 7 | 4 4 8 Most Carried 10 | . 4 10 Average Carried 6 | . 2 7 Final Capacity 10 | 4 4 10 Final Carried 10 | . 2 10 Class Distribution -------------------- 64% | Scavenger-Mutant 35% | Mutant Dominant Class ---------------- Mutant | -10/Materials Scavenger-Mutant | -9/Materials Resources | -11 -10 -9 ----------- Run | Scr Mat Mat Matter Collected 613 | 179 . 434 Remotely . | . . . Salvage Created 1197 | . . 1197 Parts 81 | . . 81 Haulers Intercepted 2 | . . 2 Recyclers Shooed . | . . . Parts Field Recycled . | . . . Retrieved Matter . | . . . Parts Self-Destructed . | . . . Prevented . | . . . Kills | -11 -10 -9 ------- Run | Scr Mat Mat Combat Hostiles Destroyed 28 | . . 28 Melee 2 | . . 2 Cannons 17 | . . 17 AOE 8 | . . 8 Classes Destroyed 7 | . . 7 Worker 2 | . . 2 Hauler 2 | . . 2 Operator 2 | . . 2 Watcher 4 | . . 4 Swarmer 7 | . . 7 Grunt 12 | . . 12 Sentry 9 | . . 9 Best Kill Streak 4 | . . 4 Combat Bots Only 4 | . . 4 Max Kills in Single Turn 2 | . . 2 Gunslinging . | . . . Exploded 2 | . . 2 Melee 1 | . . 1 Uniques/NPCs Destroyed . | . . . Combat | -11 -10 -9 -------- Run | Scr Mat Mat Damage Taken 1511 | . 205 1306 Core 478 | . 77 401 Absorbed by Shields . | . . . Core Remaining (%) 84 | 100 69 . Volleys Fired 59 | . . 59 Largest 2 | . . 2 Hottest 136 | . . 136 Shots Fired 111 | . . 111 Gun 1 | . . 1 Cannon 97 | . . 97 Launcher 13 | . . 13 Special . | . . . Kinetic . | . . . Thermal 98 | . . 98 Explosive 13 | . . 13 Electromagnetic . | . . . Robot Hit Streak 25 | . . 25 Robot Miss Streak 2 | . . 2 Penetration Max . | . . . Secondary Targets . | . . . Shots Hit Robots 98 | . . 98 Core Hits 43 | . 1 42 Critical Hits 11 | . . 11 Critical Kills 5 | . . 5 Critical Parts Destroyed 5 | . . 5 Melee Attacks 25 | . . 25 Impact 25 | . . 25 Slashing . | . . . Piercing . | . . . Sneak Attacks 1 | . . 1 Combat Hostiles . | . . . Follow-up Attacks 1 | . . 1 Damage Inflicted 2754 | . 23 2731 Guns . | . . . Cannons 1475 | . . 1475 Explosions 753 | . . 753 Melee 503 | . . 503 Ramming 23 | . 23 . Kinetic . | . . . Thermal 1475 | . . 1475 Explosive 753 | . . 753 Electromagnetic . | . . . Impact 503 | . . 503 Slashing . | . . . Piercing . | . . . Highest Corruption 3 | . 3 . Average Corruption 2 | . 2 . Corruption Purged . | . . . Effects 1 | . 1 . Energy Discharges 1 | . 1 . Overload Shots . | . . . Overflow Damage 68 | . . 68 Projectiles 29 | . . 29 Explosions 20 | . . 20 Melee 19 | . . 19 Knockbacks . | . . . Impact . | . . . Kinetic . | . . . Secondary . | . . . Self-Inflicted Damage 76 | . 10 66 Shots 3 | . . 3 Rammed 5 | . 5 . Targets Rammed 5 | . 5 . Kicked . | . . . Crushed . | . . . Highest Temperature 387 | . . 387 Average Temperature 96 | . . 96 Received Heat Transfer 546 | . 54 492 Effects 1 | . . 1 Matter Decay 1 | . . 1 Siege Activations . | . . . Robots Corrupted . | . . . Combat Hostiles . | . . . Parts Fried . | . . . Impact Corruptions 1 | . . 1 Robots Melted . | . . . Combat Hostiles . | . . . Parts Melted 5 | . . 5 Heat Transferred 2664 | . . 2664 Parts Sabotaged . | . . . Parts Stolen . | . . . Parts Stripped . | . . . Power Chain Reactions . | . . . Missiles Intercepted . | . . . Alert | -11 -10 -9 ------- Run | Scr Mat Mat Peak Influence 566 | . 55 566 Initial 22 | . . 22 Average 239 | . 11 270 Maximum Alert Level 2 | . . 2 Low Security (%) 40 | 100 100 32 Level 1 48 | . . 55 Level 2 10 | . . 11 Level 3 . | . . . Level 4 . | . . . Level 5 . | . . . High Security . | . . . Max Security . | . . . Squads Dispatched 8 | . 2 6 Investigation 3 | . 1 2 Extermination . | . . . Reinforcement 4 | . 1 3 Assault 1 | . . 1 Garrison . | . . . Intercept . | . . . Construction Impeded . | . . . Haulers Reinforced . | . . . Stealth | -11 -10 -9 --------- Run | Scr Mat Mat Distress Signals 4 | . . 4 Communications Jammed . | . . . Distress Signals . | . . . Times Spotted 74 | . 17 57 Peak Tracking Total 11 | . 11 5 Tactical Retreats 6 | . 3 3 Traps | -11 -10 -9 ------- Run | Scr Mat Mat Traps Triggered 3 | . 1 2 Indirectly . | . . . Trap Hack Attempts . | . . . Triggered . | . . . Disarmed . | . . . Reprogrammed . | . . . Reused . | . . . Traps Extracted . | . . . Installed . | . . . Triggered . | . . . Machines | -11 -10 -9 ---------- Run | Scr Mat Mat Machines Disabled 4 | . . 4 Max in Single Turn 2 | . . 2 Machines Sabotaged . | . . . Garrisons Compromised . | . . . Overloaded Fab Kills . | . . . Fab Network Shutdowns . | . . . Hacking | -11 -10 -9 --------- Run | Scr Mat Mat Machines Accessed 6 | . . 6 Terminals 6 | . . 6 Fabricators . | . . . Repair Stations . | . . . Recycling Units . | . . . Scanalyzers . | . . . Garrison Access . | . . . Total Hacks 15 | . . 15 Successful 4 | . . 4 Failed 11 | . . 11 Catastrophic 2 | . . 2 Database Lockouts . | . . . Manual 12 | . . 12 Terminals 15 | . . 15 Fabricators . | . . . Repair Stations . | . . . Recycling Units . | . . . Scanalyzers . | . . . Garrison Access . | . . . Terminal Hacks 2 | . . 2 Branch Access Points 1 | . . 1 Recall Investigation 1 | . . 1 Fabricator Hacks . | . . . Repair Station Hacks . | . . . Recycling Unit Hacks . | . . . Scanalyzer . | . . . Garrison Access Hacks . | . . . Unauthorized Hacks 2 | . . 2 Terminals 2 | . . 2 Assimilate 1 | . . 1 Botnet 1 | . . 1 Fabricators . | . . . Repair Stations . | . . . Recycling Units . | . . . Scanalyzers . | . . . Garrison Access . | . . . Data Cores Recovered . | . . . Used . | . . . Hacking Detections 6 | . . 6 Full Trace Events 1 | . . 1 Feedback Events . | . . . Feedback Blocked . | . . . Robot Schematics Acquired . | . . . Robots Built . | . . . Matter . | . . . Time . | . . . Total Robot Build Rating . | . . . Part Schematics Acquired . | . . . Parts Built . | . . . Matter . | . . . Time . | . . . Total Part Build Rating . | . . . Parts Repaired . | . . . Time . | . . . Parts Recycled . | . . . Recycled Matter . | . . . Retrieved Matter . | . . . Retrieved Components . | . . . Parts Scanalyzed . | . . . Part Schematics Acquired . | . . . Parts Damaged . | . . . Bothacking | -11 -10 -9 ------------ Run | Scr Mat Mat Used RIF Installer . | . . . Robots Hacked . | . . . Non-combat . | . . . Combat . | . . . Robot Hacks Applied . | . . . Relay Couplers Released . | . . . Robots Rewired . | . . . Allies Hacked . | . . . Hacks Repelled . | . . . Allies | -11 -10 -9 -------- Run | Scr Mat Mat Total Allies 1 | . . 1 Largest Group 1 | . . 1 Highest-Rated Group 10 | . . 10 Highest-Rated Ally 10 | . . 10 Total Orders . | . . . Ally Attacks . | . . . Total Damage . | . . . Kills . | . . . Allies Corrupted . | . . . Allies Melted . | . . . Intel | -11 -10 -9 ------- Run | Scr Mat Mat Robot Analysis Total . | . . . Derelict Logs Recovered . | . . . Drone Launches . | . . . Drone Recoveries . | . . . Exploration | -11 -10 -9 ------------- Run | Scr Mat Mat Turns Passed 1933 | 9 223 1701 Spaces Moved 1431 | 18 325 1088 Core 248 | 18 226 4 Treads 751 | . . 751 Legs . | . . . Wheels . | . . . Hover 59 | . 59 . Flight 373 | . 40 333 Fastest Speed 40 | 50 40 40 Average Speed 105 | 50 50 123 Slowest Speed 160 | 50 60 160 Overloaded Moves . | . . . Propulsion Burnouts . | . . . Robots Hopped 2 | . 2 . Cave-ins Triggered . | . . . Exploration Rate (%) 51 | 3 59 91 Regions Visited 2 Branch Regions . Pre-discovered Areas . | . . . Known Exits Taken . | . . . Unknown Exits Taken 2 | 1 1 . Scrap Searched . | . . . Spaces Dug 1 | . . 1 Terrain Destroyed 81 | . . 81 Melee 1 | . . 1 Projectile . | . . . AOE 80 | . . 80 Terrain Rammed . | . . . Walls Destroyed . | . . . Machines Disabled . | . . . Actions | -11 -10 -9 --------- Run | Scr Mat Mat Total 1683 | 17 379 1287 Wait 114 | . 43 71 Move 1425 | 17 320 1088 Hop 2 | . 2 . Pick Up 18 | . 4 14 Fast Attach 17 | . 3 14 Attach 4 | . 2 2 Detach 2 | . . 2 Swap 5 | . . 5 Drop 9 | . . 9 Fire 59 | . . 59 Melee 23 | . . 23 Ram 5 | . 5 . Kick . | . . . Crush . | . . . Escape Stasis . | . . . Rewire . | . . . Trap . | . . . Miscellaneous . | . . . Route ------- -11/Scrapyard -10/Materials -9/Materials (discovered 5 exits: *Mat x3 / *Min x2) History --------- Turn | Location | Event 3 | -11/Scrapyard | Discovered new exit (range 15) 10 | -11/Scrapyard | Entered Materials 229 | -10/Materials | Discovered new exit (range 11) 233 | -10/Materials | Entered another Materials area 233 | -9/Materials | Evolved 2 slots: Propulsion x1, Utility x1 279 | -9/Materials | Discovered new exit (range 12) 303 | -9/Materials | Discovered new exit (range 10) 313 | -9/Materials | Build established: Mutant 536 | -9/Materials | Core integrity fell below 50% 931 | -9/Materials | Core integrity fell below 20% 1020 | -9/Materials | Identified exit to Mines 1048 | -9/Materials | Discovered new exit (range 4) 1106 | -9/Materials | Build established: Scavenger-Mutant 1565 | -9/Materials | Identified exit to Materials 1675 | -9/Materials | Discovered exit to Materials (range 4) 1833 | -9/Materials | First assault squad dispatched 1934 | -9/Materials | Destroyed by Y-45 Defender with Beam Rifle Last Messages --------------- 01869_ K-01 Serf collects debris. 01872_ U-05 Engineer builds a Wall. 01874_ K-01 Serf collects debris. 01882_ S-10 Pest destroyed. 01882_ Material Compactor disabled. 01882_ Lgt. Deuterium Engine destroyed. 01882_ Destroyed Lgt. Deuterium Engine. 01885_ Destroyed Flight Unit. 01885_ S-10 Pest destroyed. 01895_ U-05 Engineer lays Concrete. 01900_ Neutrino Reactor explodes. 01900_ U-05 Engineer lays Concrete. 01901_ C-30 ARC bursts open, deploying its payload. 01901_ G-47 Trooper unfolds itself. 01901_ G-34 Mercenary unfolds itself. 01901_ M-13 Machinist unfolds itself. 01901_ U-05 Engineer lays Concrete. 01925_ Adv. Beam Cannon destroyed. 01925_ Material Processor disabled. 01926_ Lgt. Armor Plating destroyed. Map ----- +----------------------------------------------------+ | # # # ????????????? | | ####### # ""???????????? | | ""T"" #= """??????????? | | """"" # """"?????????? | | " """ + ""??????????? | | %"" # ??????????? | | ####### ^ # ??????????? | | ####### " #######???#??????? | | # # ^" # "?" #??????? | | # "" # "Y" #??????? | | # " # " " #??????? | | + " [ ## """ #??????? | | # %= ## """ #??????? | | #### ##### ## """ ????????? | | #???## ?????# ## ??????????? | | #??### ""?????## ## ????????????? | | #? # "???????# ##+###???????????? | | #? #?????????+ #???????????? | | # #?????????# T #???????????? | | # #?????????# ##+##########????? | | + [ #?????????###### g #????? | | # #??????????????#"""g """ #????? | | # #??????????????#"R m """" ##???? | | +? #??????????????#""" g""""" #???? | | ?? #??????????????# g""""" #????? | | ???###??????????????# @ """ #????? | | ????????????????????# Y #????? | | ????????????????????#############????? | | | | | | | | | | | | | | | | | | | | | | | | | | | | | | | | | | | | | | | | | | | | | +----------------------------------------------------+ Best States ------------- Heat Dissipation 38 Energy Generation 14 Energy Capacity 265 Matter Stores 300 Matter Capacity 300 Sight Range 16 Terrain Scan Density 10 Additional Mass Support 6 Armor Coverage 150 Evasion (%) 62 Targeting Accuracy 8 Recoil Reduction 3 Item Schematics ----------------- None Robot Schematics ------------------ None Fabricated ------------ Nothing Alien Tech Used ----------------- None Achievements -------------- None Challenges ------------ None Game ------ Seed NeutrinoPowerShotgun Manual? 0 Play Time 00:24:38 Cumulative 206.6 hours Start 2021.10.04 @ 21:36:26 End 2021.10.16 @ 22:51:25 Sessions 2 Manual Loads 0 Difficulty Rogue Special Mode None Game No. 97 Rogue 93 Adventurer 0 Explorer 4 Win Type - Total 12 Types 4/0/2/2/0/2/2/0/0 Lore% 73 Gallery% 78 Achievement% 67 Wizard Run 0 Options --------- ASCII 0 Keyboard 0 Movement Mouse Keybinds 0 Fullscreen 1 Font 18/SmallcapsGlow Map View 76x50 Tactical HUD 1 Map Filters NONE Filters NONE Steam 1 RUN: c0bf51a8-d284-497a-a7a3-c3b16e73b3ef